Cogmind - Beta 15 @@@ ROGUE MODE // 2025.06.15 @ 15:25:10 Player: Oldman Pu Result: Destroyed by FZ-ETD(R) with Subdweller Laser Performance ------------- Evolutions (0) 0 Regions Visited (2) 400 Robots Destroyed (18) 90 Value Destroyed (457) 457 Prototype IDs (0) 0 Alien Tech Used (0) 0 Bonus (0) 0 TOTAL SCORE: 947 Bonus ------- None Cogmind --------- Core Integrity 0/250 Matter 193/300 Energy 200/200 System Corruption 0% Temperature Cool (6) Movement Rolling (115) Ox1 Location -10/Subcaves Parts ------- > --- POWER (1) -------- Subdweller Power Source > --- PROPULSION (2) --- Compact Wheel Compact Wheel > --- UTILITY (2) ------ High-capacity Storage Unit Targeting Computer > --- WEAPON (2) ------- Light Assault Rifle Battle Cannon > --- INVENTORY (20) --- Ion Engine Spiked Treads Compact Wheel Small Storage Unit High-capacity Storage Unit High-capacity Storage Unit Humpback High-capacity Matter Pod (171) Propulsion Shielding Weapon Shielding Medium Laser Medium Laser Light Assault Rifle Battle Cannon Peak State ------------ > --- POWER ------------ Subdweller Power Source > --- PROPULSION ------- Wheel Compact Wheel > --- UTILITY ---------- High-capacity Storage Unit Targeting Computer > --- WEAPON ----------- Light Assault Rifle Battle Cannon > --- INVENTORY -------- Ion Engine Spiked Treads Compact Wheel Compact Wheel Small Storage Unit High-capacity Storage Unit High-capacity Storage Unit High-capacity Matter Pod Propulsion Shielding Weapon Shielding Medium Laser Medium Laser Light Assault Rifle Light Assault Rifle [Rating: 10] Favorites ----------- Power Ion Engine Engine Ion Engine Propulsion Compact Wheel Wheel Compact Wheel Utility Targeting Computer Storage High-capacity Storage Unit Processor Targeting Computer Weapon Medium Laser Energy Gun Medium Laser Ballistic Gun Light Assault Rifle Ballistic Cannon Battle Cannon Build | -11 -10 -10 ------- Run | Yrd Mat Sub Slots Evolved . | . . . Power . | . . . Propulsion . | . . . Utility . | . . . Weapon . | . . . Parts Attached 17 | 7 5 5 Power 3 | 1 1 1 Engine 3 | 1 1 1 Core . | . . . Reactor . | . . . Propulsion 5 | 2 2 1 Treads . | . . . Leg . | . . . Wheel 5 | 2 2 1 Hover . | . . . Flight . | . . . Utility 3 | 1 2 . Device . | . . . Storage 2 | 1 1 . Processor 1 | . 1 . Hackware . | . . . Protection . | . . . Artifact . | . . . Weapon 6 | 3 . 3 Energy Gun 1 | 1 . . Energy Cannon . | . . . Ballistic Gun 3 | 2 . 1 Ballistic Cannon 2 | . . 2 Launcher . | . . . Special Weapon . | . . . Impact Weapon . | . . . Slashing Weapon . | . . . Piercing Weapon . | . . . Special Melee Weapon . | . . . Unidentified Prototypes . | . . . Parts Lost 7 | . 3 4 Power 1 | . 1 . Propulsion 3 | . 1 2 Utility . | . . . Weapon 3 | . 1 2 Highest Loss Streak 2 | . 2 2 To Critical Strikes . | . . . Average Backups 9 | 1 8 13 Power . | . . . Propulsion 1 | . 1 2 Utility 3 | . 2 6 Weapon 3 | . 3 3 Tool/Special . | . . . Unused Backups 11 | . . 11 Power . | . . . Propulsion 2 | . . 2 Utility 6 | . . 6 Weapon 3 | . . 3 Tool/Special . | . . . Average Slot Usage (%) 98 | . 98 98 Engine 14 | . 14 14 Wheel 26 | . 26 26 Storage 14 | . 14 14 Processor 13 | . 13 14 Energy Gun 10 | . 14 5 Ballistic Gun 13 | . 13 13 Ballistic Cannon 3 | . . 8 Peak Build Rating 10 | 6 8 10 Average Rating 7 | 5 7 9 On Entrance 4 | . 6 8 Naked Turns . | . . . Heaviest Build 49 | 14 48 49 Greatest Support 32 | 26 32 32 Greatest Overweight (x) 4 | 4 4 3 Average Overweight (x) . | 2 . 1 Largest Inventory Capacity 20 | 8 20 20 Average Capacity 16 | 7 14 20 Most Carried 15 | 2 12 15 Average Carried 9 | 1 8 13 Final Capacity 20 | 8 20 20 Final Carried 15 | 2 12 15 Class Distribution -------------------- 100% | Mutant Dominant Class ---------------- Mutant | -10/Materials Mutant | -10/Subcaves Resources | -11 -10 -10 ----------- Run | Yrd Mat Sub Matter Collected 752 | 244 325 183 Remotely . | . . . Salvage Created 579 | . 475 104 Parts 35 | . 28 7 Haulers Intercepted 2 | . 2 . Recyclers Shooed . | . . . Parts Field Recycled . | . . . Retrieved Matter . | . . . Parts Self-Destructed 10 | . . 10 Prevented . | . . . Kills | -11 -10 -10 ------- Run | Yrd Mat Sub Combat Hostiles Destroyed 13 | . 9 4 Guns 11 | . 9 2 Cannons 2 | . . 2 Classes Destroyed 6 | . 5 1 Worker 1 | . 1 . Hauler 2 | . 2 . Watcher 2 | . 2 . Swarmer 3 | . 3 . Grunt 6 | . 6 . Subdweller 4 | . . 4 Best Kill Streak 3 | . 3 2 Combat Bots Only 3 | . 3 2 Max Kills in Single Turn 1 | . 1 1 Gunslinging . | . . . Exploded . | . . . Melee . | . . . Uniques/NPCs Destroyed . | . . . Combat | -11 -10 -10 -------- Run | Yrd Mat Sub Hostile Shots Fired 88 | . 51 37 Missed 27 | . 17 10 Hits 61 | . 34 27 Projectile 61 | . 34 27 Critical Strikes 1 | . . 1 Damage Taken 1044 | . 473 571 Core 267 | . 143 124 Absorbed by Shields . | . . . Core Remaining (%) 100 | 100 . . Volleys Fired 98 | . 57 41 Largest 2 | . 2 2 Hottest 83 | . 70 83 Shots Fired 190 | . 112 78 Gun 153 | . 112 41 Cannon 37 | . . 37 Launcher . | . . . Special . | . . . Kinetic 126 | . 55 71 Thermal 64 | . 57 7 Explosive . | . . . Electromagnetic . | . . . Robot Hit Streak 18 | . 6 18 Robot Miss Streak 6 | . 6 1 Penetration Max . | . . . Secondary Targets 3 | . 3 . Max Gunslinging Chain 1 | . 1 . Shots Hit Robots 107 | . 67 40 Core Hits 35 | . 26 9 Critical Kills 1 | . 1 . Critical Parts Destroyed . | . . . Critical Strikes 6 | . 4 2 Burn 4 | . 3 1 Destroy 1 | . 1 . Blast 1 | . . 1 Melee Attacks . | . . . Impact . | . . . Slashing . | . . . Piercing . | . . . Sneak Attacks . | . . . Combat Hostiles . | . . . Follow-up Attacks . | . . . Damage Inflicted 1319 | . 755 564 Guns 907 | . 755 152 Cannons 412 | . . 412 Explosions . | . . . Melee . | . . . Ramming . | . . . Kinetic 874 | . 370 504 Thermal 445 | . 385 60 Explosive . | . . . Electromagnetic . | . . . Impact . | . . . Slashing . | . . . Piercing . | . . . Highest Corruption . | . . . Average Corruption . | . . . Corruption Purged . | . . . Corruption Blocked . | . . . Overload Shots . | . . . Overflow Damage . | . . . Projectiles . | . . . Explosions . | . . . Melee . | . . . Knockbacks 4 | . . 4 Impact . | . . . Kinetic 4 | . . 4 Secondary . | . . . Self-Inflicted Damage . | . . . Shots . | . . . Rammed . | . . . Targets Rammed . | . . . Kicked . | . . . Crushed . | . . . Highest Temperature 197 | . 197 . Average Temperature 55 | . 55 . Received Heat Transfer 399 | . 234 165 Siege Activations . | . . . Martial Activations . | . . . Shielding Activations . | . . . Robots Disrupted . | . . . Combat Hostiles . | . . . Robots Corrupted . | . . . Combat Hostiles . | . . . Parts Fried . | . . . Impact Corruptions . | . . . Robots Melted . | . . . Combat Hostiles . | . . . Parts Melted 1 | . 1 . Heat Transferred 1628 | . 1369 259 Parts Sabotaged . | . . . Parts Stolen . | . . . Parts Stripped . | . . . Power Chain Reactions . | . . . Alert | -11 -10 -10 ------- Run | Yrd Mat Sub Maximum Alert Level . | . . . Low Security (%) 100 | 100 100 . Level 1 . | . . . Level 2 . | . . . Level 3 . | . . . Level 4 . | . . . Level 5 . | . . . High Security . | . . . Max Security . | . . . Peak Influence 93 | . 93 . Initial . | . . . Average 25 | . 27 . Influence Increases 322 | . 322 . Destroy 0b10 Robot/C 180 | . 180 . Destroy 0b10 Robot/NC 25 | . 25 . Destroy Leader 48 | . 48 . Successful Hack 39 | . 39 . Lose Combat Pursuer 30 | . 30 . Influence Decreases 322 | . 322 . Time Decay 302 | . 302 . Lost Part 20 | . 20 . Squads Dispatched 1 | . 1 . Investigation . | . . . Extermination . | . . . Reinforcement 1 | . 1 . Assault . | . . . Garrison . | . . . Intercept . | . . . Searches Triggered . | . . . Construction Impeded . | . . . Haulers Reinforced . | . . . Active Scanning Responses . | . . . Cargo Convoy Interrupts . | . . . Stealth | -11 -10 -10 --------- Run | Yrd Mat Sub Distress Signals 2 | . 2 . Communications Jammed . | . . . Distress Signals . | . . . Times Spotted 24 | . 18 6 Peak Tracking Total 7 | . 7 2 Tactical Retreats 1 | . 1 . Traps | -11 -10 -10 ------- Run | Yrd Mat Sub Traps Triggered 1 | . 1 . Indirectly . | . . . Trap Hack Attempts . | . . . Triggered . | . . . Disarmed 3 | . 3 . Reprogrammed . | . . . Reused . | . . . Traps Extracted . | . . . Installed . | . . . Triggered . | . . . Machines | -11 -10 -10 ---------- Run | Yrd Mat Sub Machines Disabled . | . . . Max in Single Turn . | . . . Machines Repaired . | . . . Machines Dismantled . | . . . Machines Sabotaged . | . . . Overloaded Fab Kills . | . . . Hacking | -11 -10 -10 --------- Run | Yrd Mat Sub Machines Accessed 6 | . 5 1 Terminals 5 | . 5 . Fabricators . | . . . Repair Stations . | . . . Recycling Units . | . . . Scanalyzers . | . . . Garrison Access . | . . . Total Hacks 16 | . 13 3 Successful 11 | . 8 3 Failed 5 | . 5 . Catastrophic . | . . . Database Lockouts . | . . . Manual . | . . . Terminals 13 | . 13 . Fabricators . | . . . Repair Stations . | . . . Recycling Units . | . . . Scanalyzers . | . . . Garrison Access . | . . . Terminal Hacks 11 | . 8 3 Record 4 | . 1 3 Branch Access Points 1 | . 1 . Emergency Access Points 2 | . 2 . Locate Traps 3 | . 3 . Disarm Traps 1 | . 1 . Fabricator Hacks . | . . . Repair Station Hacks . | . . . Recycling Unit Hacks . | . . . Scanalyzer . | . . . Garrison Access Hacks . | . . . Unauthorized Hacks . | . . . Terminals . | . . . Fabricators . | . . . Repair Stations . | . . . Recycling Units . | . . . Scanalyzers . | . . . Garrison Access . | . . . Data Cores Recovered . | . . . Used . | . . . Hacking Detections 4 | . 4 . Full Trace Events . | . . . Feedback Events . | . . . Feedback Blocked . | . . . Robot Schematics Acquired . | . . . Robots Built . | . . . Authchips . | . . . Time . | . . . Total Robot Build Rating . | . . . Part Schematics Acquired . | . . . Parts Built . | . . . Authchips . | . . . Time . | . . . Total Part Build Rating . | . . . Parts Repaired . | . . . Time . | . . . Parts Recycled . | . . . Recycled Matter . | . . . Retrieved Matter . | . . . Retrieved Components . | . . . Parts Scanalyzed . | . . . Part Schematics Acquired . | . . . Parts Damaged . | . . . Bothacking | -11 -10 -10 ------------ Run | Yrd Mat Sub Used RIF Installer . | . . . Robots Hacked . | . . . Non-combat . | . . . Combat . | . . . Robot Hacks Applied . | . . . Relay Couplers Released . | . . . Fabnet Peak Effective % . | . . . Robots Rewired . | . . . Allies Hacked . | . . . Hacks Repelled . | . . . Allies | -11 -10 -10 -------- Run | Yrd Mat Sub Total Allies . | . . . Largest Group . | . . . Highest-Rated Group . | . . . Highest-Rated Ally . | . . . Total Orders . | . . . Ally Attacks . | . . . Total Damage . | . . . Kills . | . . . Allies Corrupted . | . . . Allies Melted . | . . . Intel | -11 -10 -10 ------- Run | Yrd Mat Sub Active Infowar (turns) . | . . . Robot Analysis Total . | . . . Derelict Logs Recovered 2 | . . 2 Drone Launches . | . . . Drone Recoveries . | . . . Exploration | -11 -10 -10 ------------- Run | Yrd Mat Sub Turns Passed 1845 | 86 1111 648 Spaces Moved 1246 | 44 736 466 Core 43 | 43 . . Treads . | . . . Legs . | . . . Wheels 1203 | 1 736 466 Hover . | . . . Flight . | . . . Fastest Speed 50 | 50 90 105 Average Speed 110 | 171 106 111 Slowest Speed 250 | 250 140 145 Overloaded Moves . | . . . Propulsion Burnouts . | . . . Robots Hopped . | . . . Potential Cave-ins . | . . . Cave-ins Triggered . | . . . Exploration Rate (%) 45 | 4 100 33 Regions Visited 2 Branch Regions 1 Pre-discovered Areas 3 | . . 3 Known Exits Taken . | . . . Unknown Exits Taken 2 | 1 1 . Scrap Searched . | . . . Spaces Dug . | . . . Terrain Destroyed . | . . . Melee . | . . . Projectile . | . . . AOE . | . . . Terrain Rammed . | . . . Walls Destroyed . | . . . Machines Disabled . | . . . Actions | -11 -10 -10 --------- Run | Yrd Mat Sub Total 1524 | 51 952 521 Wait 146 | . 144 2 Move 1244 | 43 735 466 Hop . | . . . Pick Up 16 | 1 10 5 Fast Attach 8 | 6 2 . Attach 6 | . 2 4 Detach . | . . . Swap 6 | 1 2 3 Drop . | . . . Fire 98 | . 57 41 Melee . | . . . Ram . | . . . Kick . | . . . Crush . | . . . Escape Stasis . | . . . Rewire . | . . . Trap . | . . . Miscellaneous . | . . . Route ------- -11/Scrapyard -10/Materials (discovered 6 exits: [*Mat x3] / *Min x2 / *Sub) -10/Subcaves (discovered 1 exit: [*Mat]) History --------- Turn | Location | Event 32 | -11/Scrapyard | Discovered new exit (range 15) 87 | -11/Scrapyard | Entered Materials 116 | -10/Materials | Discovered new exit (range 11) 304 | -10/Materials | Build established: Mutant 339 | -10/Materials | Discovered new exit (range 8) 392 | -10/Materials | Discovered new exit (range 8) 527 | -10/Materials | Discovered new exit (range 11) 615 | -10/Materials | Identified exit to Mines 831 | -10/Materials | Discovered new exit (range 6) 1034 | -10/Materials | Core integrity fell below 50% 1044 | -10/Materials | Discovered new exit (range 9) 1198 | -10/Materials | Entered Subcaves 1306 | -10/Subcaves | Shifting Twisted Machinery released Battle Cannon 1309 | -10/Subcaves | Shifting Twisted Machinery released Spk. Treads 1322 | -10/Subcaves | Learned location of Zion (-7) 1322 | -10/Subcaves | Met a Zionite searching for "candidates" 1467 | -10/Subcaves | Discovered new exit (range 8) 1542 | -10/Subcaves | Visited Clippyterm 1545 | -10/Subcaves | Learned location of Deep Caves (-7) 1587 | -10/Subcaves | Learned Materials emergency access door positions 1634 | -10/Subcaves | Core integrity fell below 20% 1671 | -10/Subcaves | Shifting Twisted Machinery released Battle Cannon 1682 | -10/Subcaves | A swath of the cavern ceiling suddenly collapsed 1714 | -10/Subcaves | Shifting Twisted Machinery released Battle Cannon 1846 | -10/Subcaves | Destroyed by FZ-ETD(R) with Subdweller Laser Last Messages --------------- 01638_ DP-8DD(R) knocked back. 01643_ Battle Cannon destroyed. 01648_ DP-8DD(R) destroyed. 01651_ Acquired 3 matter. 01655_ Acquired Humpback. 01657_ Acquired 10 matter. 01658_ Acquired 2 matter. 01661_ Acquired 8 matter. 01662_ Acquired 46 matter. Battle Cannon falls loose from the Twisted Machinery. A swath of the cavern ceiling suddenly collapses. 01698_ Subatomizers dissect the Sub. Power Source. 01705_ Acquired 11 matter. 01712_ Subatomizers dissect the Sub. Power Source. Battle Cannon falls loose from the Twisted Machinery. 01723_ Acquired Battle Cannon. 01734_ Acquired 30 matter. 01780_ Acquired Battle Cannon. 01829_ Acquired derelict log, extracted data. World map confirmed: -7/Zion. Map ----- +----------------------------------------------------+ | ????? #??????????????????????????????????????????? | | ?????????????????????????????????????????????????? | | ?????????????????????????????????????????????????? | | ?????????????????????????????????????????????????? | | ?????????????????????????????????????????????????? | | ??????????????????????????????????? ?????????????? | | ?????????????????????????????????? ?????????????? | | ???????????????????????????????### ??????????????? | | ??????????????????????????????? ???????????????? | | ?????????????????????????????## ???????????????? | | ?????????????????????????#### # ???#????????????? | | ?????????????????????????? ???" #???????????? | | ?????????????????????????? #???" ???????????? | | ??????????????????????????# #???" ???????????? | | ??????????????????????????# #??# ????????????? | | ??????????????????#???????# #?? ????????????? | | ??????????????????# ??????# #??? ????????????? | | ??????????????????? ?????## #??? #????????##??? | | ???????????????????# ####" ##?? ##???????# ### | | ????????????????????#""" " ##?# #???????# | | ????????????????????# ##"## ### ##???????# | | ????????????????????# # ""# ##??????# # | | ????????????????????# " #???#### # | | ????????????????????## # "" ##???# # | | ??????????????????????# "# ## ##???# "&!# | | ??????????????????????## @## "#### ""#???# """ | | ???????????????????????# ### ""#?# "##???# " | | ???????????????????????# ######## "#???# | | ???????????????????????# #?????#" "##???# ## | | ?????????????????????? ##?????##" ###### ##### | | ???????????????????? R#???????##" """ ## #???# | | ?????????????????? ????????## """" ##### | | ?????????????????## R ????????# " #### | | ??????????????????# ???????## # ##?#"" | | ?????????????????# ????????####"" ###"" | | ???????????????? ###?????????#"#####"""" | | ??????????????? #???????????##""###""" | | ??????????????# ##???????????#"#""##"" | | ??????????????# ####????????????#""####" | | ??????????????# ####????????????????###""##" | | ??????????????? #????????????????????? "###""" # | | ????????????????????????????????????????"" ##"##"# | | ???????????????????????????????????????? #####""# | | ???????????????????????????????????????? ??#"#"" | | ???????????????????????????????????????? ""?""#*&# | | ???????????????????????????????????????? ??##"?""" | | ??????????????????????????????????????? "???"?#""" | | ???????????????????????????????????????????#??### | | ????????????????????????????????????????????????? | | ????????????????????????????????????????????????? | +----------------------------------------------------+ Best States ------------- Heat Dissipation 25 Energy Generation 15 Energy Capacity 250 Matter Stores 300 Matter Capacity 300 Sight Range 16 Terrain Scan Density 10 Evasion (%) 50 Targeting Accuracy 5 Item Schematics ----------------- None Robot Schematics ------------------ None Fabricated ------------ Nothing Repaired ---------- Nothing Alien Tech Used ----------------- None Achievements -------------- None Challenges ------------ None Game ------ Seed ThrusterSurgeShockpuncher Manual? 0 Play Time 00:16:22 Cumulative 302.3 hours Start 2025.06.15 @ 15:04:54 End 2025.06.15 @ 15:25:10 Sessions 1 Manual Loads 0 Difficulty Rogue Special Mode None Game No. 255 Rogue 243 Adventurer 12 Explorer 0 Win Type - Total 1 Types 1/0/0/0/0/0/0/0/0/0 Lore% 30 Gallery% 44 Achievement% 37 Wizard Run 0 Options --------- Layout 1 ASCII 0 Keyboard 0 Movement Mouse Keybinds 0 Fullscreen 1 Font 32/SmallcapsGlow Map View 77x35 Zoom Use 0% Tactical HUD 1 Map Filters NONE Filters NONE Steam 1 RUN: 037f3fed-3343-48dd-a7aa-c09395879365